bitfinex-derivatives/quotes_BNBF0:USTF0_20250630
["timestamp","ask_amount","ask_price","bid_price","bid_amount"]
[1751301008345,2.54228316,656.07,655.39,1.0621761]
[1751301008547,2.54228316,656.07,655.4,1.0621761]
[1751301008850,2.27686326,656.05,655.41,1.0621761]
[1751301009051,2.27686326,656.05,655.42,1.0621761]
[1751301009246,2.27686326,656.04,655.43,1.0621761]
[1751301009445,2.27686326,656.04,655.44,1.0621761]
[1751301009650,2.27686326,656.04,655.45,1.0621761]
[1751301009951,2.27686326,656.04,655.46,1.0621761]
[1751301010152,2.27686326,656.04,655.47,1.0621761]
[1751301010352,2.27686326,656.03,655.48,1.0621761]
[1751301010549,2.27686326,656.03,655.49,1.0621761]
[1751301010749,2.27686326,656.03,655.5,1.0621761]
[1751301010953,2.27686326,656.03,655.51,1.0621761]
[1751301011248,2.27686326,656.03,655.52,1.0621761]
[1751301011454,2.27686326,656.03,655.42,2.089]
[1751301011650,2.27686326,656.04,655.43,1.06253575]
[1751301011953,2.27686326,656.04,655.44,1.06253575]
[1751301012154,2.27686326,656.04,655.45,1.06253575]
[1751301012350,2.27686326,656.04,655.46,1.06253575]
[1751301012555,2.27686326,656.04,655.47,1.06253575]
[1751301012755,2.27686326,656.04,655.48,1.06253575]
[1751301013056,2.27686326,656.04,655.49,1.06253575]
[1751301013352,2.27686326,656.04,655.5,1.06253575]
[1751301013557,0.2654199,656.07,655.51,1.06253575]
[1751301013756,0.2654199,656.07,655.52,1.06253575]
[1751301014057,0.2654199,656.07,655.53,1.06253575]
[1751301014254,0.2654199,656.07,655.54,1.06253575]
[1751301014455,0.2654199,656.07,655.42,2.089]
[1751301014655,0.2654199,656.07,655.43,1.06282384]
[1751301014956,0.2654199,656.07,655.44,1.06282384]
[1751301015254,0.2654199,656.07,655.45,1.06282384]
[1751301015454,0.2654199,656.07,655.46,1.06282384]
[1751301015656,0.2654199,656.07,655.47,1.06282384]
[1751301015854,0.2654199,656.07,655.48,1.06282384]
[1751301016152,0.2654199,656.07,655.49,1.06282384]
[1751301016355,0.2654199,656.07,655.5,1.06282384]
[1751301016557,0.2654199,656.07,655.51,1.06282384]
[1751301016755,0.2654199,656.07,655.52,1.06282384]
[1751301016958,0.2654199,656.07,655.53,1.06282384]
[1751301017155,0.2654199,656.07,655.54,1.06282384]
[1751301017361,0.2654199,656.07,655.55,1.06300717]
[1751301017562,0.2654199,656.07,655.42,2.089]
[1751301017856,0.2654199,656.07,655.43,1.06301507]
[1751301018061,0.2654199,656.07,655.44,1.06301507]
[1751301018356,0.2654199,656.07,655.45,1.06301507]
[1751301018557,0.2654199,656.07,655.46,1.06301507]
[1751301018760,0.2654199,656.07,655.47,1.06301507]
[1751301019060,0.2654199,656.07,655.48,1.06301507]
[1751301019263,0.2654199,656.07,655.49,1.06301507]
[1751301019464,0.2654199,656.07,655.5,1.06301507]
[1751301019660,0.2654199,656.07,655.51,1.06301507]
[1751301019863,0.2654199,656.07,655.52,1.06301507]
[1751301020064,0.2654199,656.07,655.53,1.06301507]
[1751301020265,0.2654199,656.07,655.54,1.06301507]
[1751301020562,0.2654199,656.07,655.55,1.06301507]
[1751301020764,0.2654199,656.07,655.56,1.06301507]
[1751301020965,0.2654199,656.07,655.42,2.089]
[1751301021265,0.2654199,656.07,655.43,1.06335083]
[1751301021564,0.2654199,656.07,655.44,1.06335083]
[1751301021765,0.2654199,656.07,655.45,1.06335083]
[1751301021965,0.2654199,656.07,655.46,1.06335083]
[1751301022165,0.2654199,656.07,655.47,1.06335083]
[1751301022465,0.2654199,656.07,655.48,1.06335083]
[1751301022664,0.2654199,656.07,655.49,1.06335083]
[1751301022862,0.2654199,656.07,655.5,1.06335083]
[1751301023067,0.2654199,656.07,655.51,1.06335083]
[1751301023267,0.2654199,656.07,655.42,2.089]
[1751301023268,0.2654199,656.07,655.52,1.06335083]
[1751301023467,0.2654199,656.07,655.53,1.06335083]
[1751301023664,0.2654199,656.07,655.54,1.06335083]
[1751301023867,0.2654199,656.07,655.55,1.06335083]
[1751301024163,0.2654199,656.07,655.56,1.06335083]
[1751301024367,0.2654199,656.07,655.57,1.06335083]
[1751301024664,0.2654199,656.07,655.42,2.089]
[1751301024969,0.2654199,656.07,655.43,1.06400953]
[1751301025268,2.27686326,656.02,655.44,1.06400953]
[1751301025463,2.27686326,656.02,655.45,1.06400953]
[1751301025662,2.27686326,656.02,655.46,1.06400953]
[1751301025864,2.27686326,655.98,655.47,1.06400953]
[1751301026063,2.27686326,655.98,655.48,1.06400953]
[1751301026363,2.27686326,655.98,655.49,1.06400953]
[1751301026564,2.27686326,655.98,655.5,1.06400953]
[1751301026764,2.27686326,655.99,655.51,1.06400953]
[1751301026964,2.27686326,655.99,655.52,1.06400953]
[1751301027263,2.27686326,655.99,655.53,1.06400953]
[1751301027469,2.27686326,655.98,655.54,1.06400953]
[1751301027664,2.27686326,655.98,655.55,1.06400953]
[1751301027968,2.27686326,655.95,655.56,1.06400953]
[1751301028168,2.27686326,655.94,655.57,1.06400953]
[1751301028368,2.27686326,655.95,655.42,2.089]
[1751301028569,2.27686326,655.95,655.43,1.06464139]
[1751301028767,2.27686326,655.97,655.44,1.06464139]
[1751301028965,2.27686326,655.97,655.45,1.06464139]
[1751301029269,2.27686326,655.97,655.46,1.06464139]
[1751301029465,2.27686326,655.97,655.42,2.089]
[1751301029466,2.27686326,655.97,655.47,1.06464139]
[1751301029669,2.27686326,655.98,655.48,1.06464139]
[1751301029966,2.27686326,656.02,655.49,1.06464139]
[1751301030170,2.27686326,656.0,655.5,1.06464139]
[1751301030371,2.27686326,656.01,655.51,1.06464139]
[1751301030571,2.27686326,656.01,655.52,1.06464139]
[1751301030868,2.27686326,656.01,655.53,1.06464139]
[1751301031170,2.27686326,656.01,655.54,1.06464139]
[1751301031370,2.27686326,656.01,655.55,1.06464139]
[1751301031565,2.27686326,656.01,655.56,1.06464139]
[1751301031770,2.27686326,656.01,655.57,1.06464139]
[1751301031968,2.27686326,656.03,655.42,2.089]
[1751301032167,2.27686326,656.03,655.43,1.06468953]
[1751301032371,2.27686326,656.03,655.44,1.06468953]
[1751301032569,2.27686326,656.03,655.45,1.06468953]
[1751301032772,2.27686326,656.03,655.46,1.06468953]
[1751301032973,2.27686326,656.03,655.47,1.06468953]
[1751301033274,2.27686326,656.03,655.48,1.06468953]
[1751301033569,2.27686326,656.03,655.49,1.06468953]
[1751301033774,2.27686326,656.03,655.5,1.06468953]
[1751301034069,2.27686326,656.05,655.51,1.06468953]
[1751301034269,2.27686326,656.05,655.52,1.06468953]
[1751301034475,2.27686326,656.04,655.53,1.06468953]
[1751301034674,2.27686326,656.04,655.54,1.06468953]
[1751301034874,2.27686326,656.04,655.55,1.06468953]
[1751301035169,2.27686326,656.05,655.56,1.06468953]
[1751301035368,2.27686326,656.05,655.57,1.06468953]
[1751301035573,2.27686326,656.05,655.58,1.06468953]
[1751301035873,2.27686326,656.02,655.42,2.089]
[1751301036173,2.27686326,656.02,655.43,1.06496452]
[1751301036473,2.27686326,656.02,655.44,1.06496452]
[1751301036674,2.27686326,656.02,655.45,1.06496452]
[1751301036971,2.27686326,656.04,655.46,1.06496452]
[1751301037173,2.27686326,656.04,655.47,1.06496452]
[1751301037376,2.27686326,656.06,655.48,1.06496452]
[1751301037578,2.27686326,656.06,655.49,1.06496452]
[1751301037774,0.2654199,656.07,655.5,1.06496452]
[1751301037972,0.2654199,656.07,655.51,1.06496452]
[1751301038279,0.2654199,656.07,655.52,1.06496452]
[1751301038480,0.2654199,656.07,655.53,1.06496452]
[1751301038680,0.2654199,656.07,655.54,1.06496452]
[1751301038880,0.2654199,656.07,655.55,1.06496452]
[1751301039090,0.2654199,656.07,655.56,1.06496452]
[1751301039277,0.2654199,656.07,655.57,1.06496452]
[1751301039476,0.2654199,656.07,655.58,1.06496452]
[1751301039678,0.2654199,656.07,655.59,1.06496452]
[1751301039981,0.2654199,656.07,655.6,1.06496452]
[1751301040181,0.2654199,656.07,655.61,1.06496452]
[1751301040380,0.2654199,656.07,655.62,1.06496452]
[1751301040581,0.2654199,656.07,655.63,1.06496452]
[1751301040878,0.2654199,656.07,655.64,1.06496452]
[1751301041181,0.2654199,656.07,655.65,1.06496452]
[1751301041381,0.2654199,656.07,655.42,2.089]
[1751301041579,0.2654199,656.07,655.43,1.06592382]
[1751301041778,2.27686326,656.19,655.44,1.06592382]
[1751301042082,0.26538044,656.19,655.45,1.06592382]
[1751301042283,0.26538044,656.19,655.46,1.06592382]
[1751301042578,0.26538044,656.19,655.47,1.06592382]
[1751301042879,0.26538044,656.19,655.48,1.06592382]
[1751301043081,2.5422437,656.19,655.49,1.06592382]
[1751301043279,2.5422437,656.19,655.5,1.06592382]
[1751301043479,2.5422437,656.19,655.51,1.06592382]
[1751301043683,2.5422437,656.19,655.52,1.06592382]
[1751301043987,0.26538044,656.19,655.53,1.06592382]
[1751301044179,0.26538044,656.19,655.42,2.089]
[1751301044180,2.5422437,656.19,655.54,1.06592382]
[1751301044478,0.26538044,656.19,655.55,1.06592382]
[1751301044678,0.26538044,656.19,655.56,1.06592382]
[1751301044878,0.26538044,656.19,655.57,1.06592382]
[1751301045078,0.26538044,656.19,655.58,1.06592382]
[1751301045283,0.26538044,656.19,655.59,1.06592382]
[1751301045483,0.26538044,656.19,655.6,1.06592382]
[1751301045683,0.26538044,656.19,655.61,1.06592382]
[1751301045983,0.26538044,656.19,655.62,1.06592382]
[1751301046279,0.26538044,656.19,655.63,1.06592382]
[1751301046482,0.26538044,656.19,655.64,1.06592382]
[1751301046679,0.26538044,656.19,655.65,1.06592382]
[1751301046878,0.26538044,656.19,655.66,1.06592382]
[1751301047077,0.26538044,656.19,655.67,1.06592382]
[1751301047279,0.26538044,656.19,655.42,2.089]
[1751301047482,0.26538044,656.19,655.43,1.06490454]
[1751301047784,0.26538044,656.19,655.44,1.06490454]
[1751301048083,0.26538044,656.19,655.45,1.06490454]
[1751301048280,0.26538044,656.19,655.46,1.06490454]
[1751301048482,0.26538044,656.19,655.47,1.06490454]
[1751301048681,2.27686326,656.18,655.48,1.06490454]
[1751301048881,2.27686326,656.18,655.49,1.06490454]
[1751301049081,2.27686326,656.18,655.5,1.06490454]
[1751301049280,2.27686326,656.18,655.51,1.06490454]
[1751301049584,2.27686326,656.16,655.52,1.06490454]
[1751301049882,2.27686326,656.16,655.53,1.06490454]
[1751301050081,2.27686326,656.16,655.54,1.06490454]
[1751301050284,2.27686326,656.17,655.55,1.06490454]
[1751301050479,2.27686326,656.17,655.56,1.06490454]
[1751301050780,2.27686326,656.17,655.57,1.06490454]
[1751301050983,2.27686326,656.16,655.58,1.06490454]
[1751301051185,2.27686326,656.16,655.59,1.06490454]
[1751301051381,2.27686326,656.16,655.6,1.06490454]
[1751301051584,2.27686326,656.16,655.61,1.06490454]
[1751301051781,2.27686326,656.16,655.62,1.06490454]
[1751301051981,2.27686326,656.16,655.63,1.06490454]
[1751301052186,2.27686326,656.16,655.64,1.06490454]
[1751301052385,2.27686326,656.17,655.65,1.06490454]
[1751301052584,2.27686326,656.17,655.42,3.23154357]
[1751301052886,2.27686326,656.17,655.43,1.06471916]
[1751301053088,2.27686326,656.17,655.44,1.06471916]
[1751301053285,2.27686326,656.18,655.45,1.06471916]
[1751301053484,2.27686326,656.18,655.46,1.06471916]
[1751301053687,2.27686326,656.18,655.47,1.06471916]
[1751301053889,2.27686326,656.18,655.48,1.06471916]
[1751301054190,2.27686326,656.18,655.49,1.06471916]
[1751301054386,2.27686326,656.13,655.5,1.06471916]
[1751301054585,2.27686326,656.13,655.51,1.06471916]
[1751301054790,2.27686326,656.12,655.52,1.06471916]
[1751301054987,2.27686326,656.12,655.53,1.06471916]
[1751301055189,2.27686326,656.12,655.54,1.06471916]
[1751301055488,2.27686326,656.12,655.55,1.06471916]
[1751301055685,2.27686326,656.12,655.56,1.06471916]
[1751301055889,2.27686326,656.12,655.57,1.06471916]
[1751301056088,2.27686326,656.12,655.58,1.06471916]
[1751301056291,2.27686326,656.12,655.59,1.06471916]
[1751301056492,2.27686326,656.13,655.6,1.06471916]
[1751301056689,2.27686326,656.12,655.61,1.06471916]
[1751301056892,2.27686326,656.12,655.62,1.06471916]
[1751301057087,2.27686326,656.12,655.63,1.06471916]
[1751301057288,2.27686326,656.13,655.64,1.06471916]
[1751301057588,2.27686326,656.13,655.44,1.14254357]
[1751301057788,2.27686326,656.13,655.45,1.06445859]
[1751301057988,2.27686326,656.15,655.46,1.06445859]
[1751301058192,2.27686326,656.15,655.47,1.06445859]
[1751301058391,2.27686326,656.15,655.42,3.23154357]
[1751301058392,2.27686326,656.16,655.48,1.06445859]
[1751301058587,2.27686326,656.16,655.49,1.06445859]
[1751301058888,2.27686326,656.16,655.5,1.06445859]
[1751301059192,2.27686326,656.16,655.51,1.06445859]
[1751301059491,2.27686326,656.16,655.52,1.06445859]
[1751301059689,2.27686326,656.16,655.53,1.06445859]
[1751301059892,2.27686326,656.16,655.54,1.06445859]
[1751301060087,2.27686326,656.16,655.55,1.06445859]
[1751301060292,2.27686326,656.16,655.56,1.06445859]
[1751301060492,2.27686326,656.16,655.57,1.06445859]
[1751301060789,2.27686326,656.16,655.58,1.06445859]
[1751301061093,2.27686326,656.16,655.59,1.06445859]
[1751301061393,2.27686326,656.16,655.6,1.06445859]
[1751301061588,2.27686326,656.16,655.61,1.06445859]
[1751301061794,2.27686326,656.16,655.62,1.06445859]
[1751301061991,2.27686326,656.16,655.63,1.06445859]
[1751301062192,2.27686326,656.15,655.43,1.14254357]
[1751301062392,2.27686326,656.15,655.44,1.06428003]
[1751301062691,2.27686326,656.14,655.45,1.06428003]
[1751301062891,2.27686326,656.14,655.46,1.06428003]
[1751301063091,2.27686326,656.14,655.47,1.06428003]
[1751301063391,2.27686326,656.14,655.48,3.13728003]
[1751301063694,2.27686326,656.14,655.49,1.06428003]
[1751301063893,2.27686326,656.14,655.5,1.06428003]
[1751301064092,2.27686326,656.14,655.51,1.06428003]
[1751301064293,2.27686326,656.14,655.52,1.06428003]
[1751301064492,2.27686326,656.14,655.53,1.06428003]
[1751301064695,2.27686326,656.14,655.54,1.06428003]
[1751301064995,2.27686326,656.14,655.55,1.06428003]
[1751301065291,2.27686326,656.14,655.56,1.06428003]
[1751301065491,2.27686326,656.14,655.57,1.06428003]
[1751301065691,2.27686326,656.15,655.58,1.06428003]
[1751301065893,2.27686326,656.15,655.59,1.06428003]
[1751301066092,2.27686326,656.15,655.6,1.06428003]
[1751301066293,2.27686326,656.15,655.61,1.06428003]
[1751301066493,2.27686326,656.15,655.62,1.06428003]
[1751301066695,2.27686326,656.15,655.63,1.06428003]
[1751301066898,2.27686326,656.15,655.48,2.073]
[1751301067093,2.27686326,656.15,655.49,1.06481167]
[1751301067294,2.27686326,656.15,655.5,1.06481167]
[1751301067498,2.27686326,656.15,655.51,1.06481167]
[1751301067697,2.27686326,656.15,655.52,1.06481167]
[1751301067896,0.26538044,656.19,655.48,2.073]
[1751301067897,2.27686326,656.11,655.53,1.06481167]
[1751301068100,2.27686326,656.11,655.54,1.06481167]
[1751301068297,2.27686326,656.11,655.55,1.06481167]
[1751301068596,2.27686326,656.11,655.56,1.06481167]
[1751301068796,2.27686326,656.11,655.57,1.06481167]
[1751301068996,2.27686326,656.11,655.58,1.06481167]
[1751301069201,2.27686326,656.11,655.59,1.06481167]
[1751301069397,2.27686326,656.11,655.6,1.06481167]
[1751301069699,2.27686326,656.11,655.61,1.06481167]
[1751301069998,2.27686326,656.11,655.62,1.06481167]
[1751301070196,2.27686326,656.11,655.48,2.073]
[1751301070397,2.27686326,656.11,655.49,1.06594516]
[1751301070599,2.27686326,656.11,655.5,1.06594516]
[1751301070799,2.27686326,656.12,655.51,1.06594516]
[1751301070998,2.27686326,656.12,655.52,1.06594516]
[1751301071196,2.27686326,656.12,655.53,1.06594516]
[1751301071397,2.27686326,656.12,655.54,1.06594516]
[1751301071597,2.27686326,656.12,655.55,1.06594516]
[1751301071801,2.27686326,656.12,655.56,1.06594516]
[1751301071998,2.27686326,656.12,655.57,1.06594516]
[1751301072300,2.27686326,656.12,655.58,1.06594516]
[1751301072499,2.27686326,656.12,655.59,1.06594516]
[1751301072696,2.27686326,656.12,655.6,1.06594516]
[1751301072897,2.27686326,656.12,655.61,1.06594516]
[1751301073102,2.27686326,656.12,655.62,1.06594516]
[1751301073402,2.27686326,656.12,655.63,1.06597338]
[1751301073603,2.27686326,656.12,655.48,2.073]
[1751301073903,2.27686326,656.12,655.49,1.06597338]
[1751301074199,2.27686326,656.12,655.5,1.06597338]
[1751301074400,2.27686326,656.12,655.51,1.06597338]
[1751301074604,2.27686326,656.12,655.52,1.06597338]
[1751301074801,2.27686326,656.12,655.53,1.06597338]
[1751301075004,2.27686326,656.12,655.54,1.06597338]
[1751301075199,2.27686326,656.12,655.55,1.06597338]
[1751301075400,2.27686326,656.12,655.48,2.073]
[1751301075401,2.27686326,656.12,655.56,1.06597338]
[1751301075600,2.27686326,656.11,655.57,1.06597338]
[1751301075801,2.27686326,656.11,655.58,1.06597338]
[1751301076099,2.27686326,656.11,655.59,1.06597338]
[1751301076304,2.27686326,656.16,655.6,1.06597338]
[1751301076502,2.27686326,656.16,655.61,1.06597338]
[1751301076703,2.27686326,656.16,655.62,1.06597338]
[1751301076901,0.26538044,656.19,655.63,1.06597338]
[1751301077105,0.26538044,656.19,655.64,1.06597338]
[1751301077404,0.26538044,656.19,655.65,1.06597338]
[1751301077602,0.26538044,656.19,655.66,1.06597338]
[1751301077901,0.26538044,656.19,655.67,1.06597338]
[1751301078199,0.26538044,656.19,655.68,1.06597338]
[1751301078409,0.26538044,656.19,655.48,2.073]
[1751301078607,0.26538044,656.19,655.49,1.06560402]
[1751301078803,0.26538044,656.19,655.5,1.06560402]
[1751301079004,0.26538044,656.19,655.51,1.06560402]
[1751301079202,0.26538044,656.19,655.52,1.06560402]
[1751301079507,0.26538044,656.19,655.53,1.06560402]
[1751301079706,0.26538044,656.19,655.54,1.06560402]
[1751301079905,0.26538044,656.19,655.55,1.06560402]
[1751301080106,0.26538044,656.19,655.56,1.06560402]
[1751301080301,0.26538044,656.19,655.57,1.06560402]
[1751301080504,0.26538044,656.19,655.58,1.06560402]
[1751301080707,0.26538044,656.19,655.59,1.06560402]
[1751301080906,0.26538044,656.19,655.6,1.06560402]
[1751301081107,0.26538044,656.19,655.61,1.06560402]
[1751301081307,0.26538044,656.19,655.62,1.06560402]
[1751301081504,0.26538044,656.19,655.63,1.06560402]
[1751301081708,0.26538044,656.19,655.64,1.06560402]
[1751301081907,0.26538044,656.19,655.65,1.06560402]
[1751301082104,0.26538044,656.19,655.66,1.06560402]
[1751301082405,0.26538044,656.19,655.67,1.06560402]
[1751301082704,0.26538044,656.19,655.68,1.06560402]
[1751301082908,0.26538044,656.19,655.46,1.14254357]
[1751301083107,0.26538044,656.19,655.47,1.06543369]
[1751301083305,0.26538044,656.19,655.48,1.06543369]
[1751301083503,0.26538044,656.19,655.46,1.14254357]
[1751301083504,0.26538044,656.19,655.49,1.06543369]
[1751301083708,0.26538044,656.19,655.5,1.06543369]
[1751301083908,0.26538044,656.19,655.51,1.06543369]
[1751301084110,0.26538044,656.19,655.52,1.06543369]
[1751301084308,0.26538044,656.19,655.53,1.06543369]
[1751301084506,0.26538044,656.19,655.54,1.06543369]
[1751301084710,0.26538044,656.19,655.55,1.06543369]
[1751301084910,0.26538044,656.19,655.56,1.06543369]
[1751301085210,0.26538044,656.19,655.57,1.06543369]
[1751301085407,0.26538044,656.19,655.58,1.06543369]
[1751301085610,0.26538044,656.19,655.59,1.06543369]
[1751301085812,0.26538044,656.19,655.6,1.06543369]
[1751301086008,0.26538044,656.19,655.61,1.06543369]
[1751301086209,0.26538044,656.19,655.62,1.06543369]
[1751301086409,0.26538044,656.19,655.63,1.06543369]
[1751301086609,2.27686326,656.18,655.64,1.06543369]
[1751301086813,2.27686326,656.18,655.65,1.06543369]
[1751301087009,2.27686326,656.42,655.66,1.06543369]
[1751301087210,0.26533896,656.3,655.67,1.06543369]
[1751301087414,0.26533896,656.3,655.68,1.06543369]
[1751301087714,0.26533896,656.3,655.69,1.06543369]
[1751301087915,0.26533896,656.3,655.7,1.06543369]
[1751301088110,0.26533896,656.3,655.71,1.06543369]
[1751301088312,0.26533896,656.3,655.72,1.06543369]
[1751301088517,0.26533896,656.3,655.73,1.06543369]
[1751301088713,0.26533896,656.3,655.74,1.06543369]
[1751301088917,0.26533896,656.3,655.75,1.06543369]
[1751301089114,0.26533896,656.3,655.76,1.06543369]
[1751301089313,0.26533896,656.3,655.77,1.06543369]
[1751301089617,0.26533896,656.3,655.78,1.06543369]
[1751301089817,0.26533896,656.3,655.79,1.06543369]
[1751301090115,0.26533896,656.3,655.8,1.06543369]
[1751301090318,0.26533896,656.3,655.54,1.789]
[1751301090516,0.26533896,656.3,655.55,1.06464598]
[1751301090720,0.26533896,656.3,655.56,1.06464598]
[1751301090920,0.26533896,656.3,655.57,1.06464598]
[1751301091217,0.26533896,656.3,655.58,1.06464598]
[1751301091421,2.27686326,656.54,655.59,1.06464598]
[1751301091621,2.27686326,656.54,655.6,1.06464598]
[1751301091921,0.26529041,656.39,655.61,1.06464598]
[1751301092121,0.26529041,656.39,655.62,1.06464598]
[1751301092316,0.26529041,656.39,655.63,1.06464598]
[1751301092519,0.26529041,656.39,655.64,1.06464598]
[1751301092720,0.26529041,656.39,655.65,1.06464598]
[1751301092921,0.26529041,656.39,655.66,1.06464598]
[1751301093216,0.26529041,656.39,655.67,1.06464598]
[1751301093416,0.26529041,656.39,655.68,1.06464598]
[1751301093621,0.26529041,656.39,655.69,1.06464598]
[1751301093921,0.26529041,656.39,655.7,1.06464598]
[1751301094120,0.26529041,656.39,655.71,1.06464598]
[1751301094418,0.26529041,656.39,655.72,1.06464598]
[1751301094617,0.26529041,656.39,655.73,1.06464598]
[1751301094817,0.26529041,656.39,655.74,1.06464598]
[1751301095017,0.26529041,656.39,655.75,1.06464598]
[1751301095318,0.26529041,656.39,655.76,1.06464598]
[1751301095521,0.26529041,656.39,655.77,1.06464598]
[1751301095719,0.26529041,656.39,655.78,1.06464598]
[1751301095922,0.26529041,656.39,655.79,1.06464598]
[1751301096225,0.26529041,656.39,655.8,1.06464598]
[1751301096426,0.26529041,656.39,655.81,1.06464598]
[1751301096625,0.26529041,656.39,655.82,1.06464598]
[1751301096822,0.26529041,656.39,655.83,1.06464598]
[1751301097021,0.26529041,656.39,655.84,1.06464598]
[1751301097221,2.27686326,656.61,655.85,1.06464598]
[1751301097525,0.26520954,656.62,655.86,1.06464598]
[1751301097724,0.26520954,656.62,655.87,1.06464598]
[1751301097921,0.26520954,656.62,655.88,1.06464598]
[1751301098225,0.26520954,656.62,655.89,1.06464598]
[1751301098423,0.26520954,656.62,655.9,1.06464598]
[1751301098621,0.26520954,656.62,655.91,1.06464598]
[1751301098821,0.26520954,656.62,655.92,1.06464598]
[1751301099025,0.26520954,656.62,655.93,1.06464598]
[1751301099225,0.26520954,656.62,655.94,1.06464598]
[1751301099523,0.26520954,656.62,655.61,1.14254357]
[1751301099723,0.26520954,656.62,655.62,1.06423072]
[1751301099924,0.26520954,656.62,655.63,1.06423072]
[1751301100121,0.26520954,656.62,655.64,1.06423072]
[1751301100425,0.26520954,656.62,655.65,1.06423072]
[1751301100626,0.26520954,656.62,655.66,1.06423072]
[1751301100826,0.26520954,656.62,655.67,1.06423072]
[1751301101027,0.26520954,656.62,655.68,1.06423072]
[1751301101324,0.26520954,656.62,655.69,1.06423072]
[1751301101523,0.26520954,656.62,655.7,1.06423072]
[1751301101827,0.26520954,656.62,655.71,1.06423072]
[1751301102027,0.26520954,656.62,655.72,1.06423072]
[1751301102327,0.26520954,656.62,655.73,1.06423072]
[1751301102527,0.26520954,656.62,655.74,1.06423072]
[1751301102726,0.26520954,656.62,655.75,1.06423072]
[1751301102924,0.26520954,656.62,655.76,1.06423072]
[1751301103122,0.26520954,656.62,655.77,1.06423072]
[1751301103327,0.26520954,656.62,655.78,1.06423072]
[1751301103621,0.26520954,656.62,655.79,1.06423072]
[1751301103827,0.26520954,656.62,655.8,1.06423072]
[1751301104022,0.26520954,656.62,655.81,1.06423072]
[1751301104221,0.26520954,656.62,655.82,1.06423072]
[1751301104423,0.26520954,656.62,655.83,1.06423072]
[1751301104624,0.26520954,656.62,655.84,1.06423072]
[1751301104928,0.26520954,656.62,655.85,1.06423072]
[1751301105123,0.26520954,656.62,655.86,1.06423072]
[1751301105327,0.26520954,656.62,655.87,1.06423072]
[1751301105625,0.26520954,656.62,655.88,1.06423072]
[1751301105824,0.26520954,656.62,655.61,1.14254357]
[1751301105825,0.26520954,656.62,655.89,1.06423072]
[1751301106025,0.26520954,656.62,655.9,1.06423072]
[1751301106225,0.26520954,656.62,655.91,1.06423072]
[1751301106529,0.26520954,656.62,655.92,1.06423072]
[1751301106826,0.26520954,656.62,655.93,1.06423072]
[1751301107026,0.26520954,656.62,655.61,1.14254357]
[1751301107230,0.26520954,656.62,655.94,2.103]
[1751301107930,0.26520954,656.62,655.95,1.06186709]
[1751301108125,0.26520954,656.62,655.96,1.06186709]
[1751301108429,0.26520954,656.62,655.94,2.103]
[1751301108627,0.26520954,656.62,655.95,1.06167173]
[1751301108929,0.26520954,656.62,655.94,2.103]
[1751301109230,0.26520954,656.62,655.95,1.06167835]
[1751301109531,0.26520954,656.62,655.94,2.103]
[1751301109730,0.26520954,656.62,655.95,1.06151771]
[1751301110030,0.26520954,656.62,655.94,2.103]
[1751301110230,0.26520954,656.62,655.95,1.06151877]
[1751301110426,0.26520954,656.62,655.94,2.103]
[1751301110628,0.26520954,656.62,655.95,1.06137504]
[1751301110832,0.26520954,656.62,655.94,2.103]
[1751301111131,0.26520954,656.62,655.95,1.06137627]
[1751301111333,0.26520954,656.62,655.94,2.103]
[1751301111627,0.26520954,656.62,655.95,1.06125077]
[1751301111831,0.26520954,656.62,655.94,2.103]
[1751301112032,0.26520954,656.62,655.95,1.06125061]
[1751301112331,0.26520954,656.62,655.94,2.103]
[1751301112532,0.26520954,656.62,655.95,1.06115299]
[1751301112732,0.26520954,656.62,655.94,2.103]
[1751301112930,0.26520954,656.62,655.95,1.06112863]
[1751301113228,0.26520954,656.62,655.94,2.103]
[1751301113429,0.26520954,656.62,655.95,1.06102795]
[1751301113630,0.26520954,656.62,655.94,2.103]
[1751301113827,0.26520954,656.62,655.95,1.06099314]
[1751301114029,0.26520954,656.62,655.94,2.103]
[1751301114233,0.26520954,656.62,655.95,1.06099324]
[1751301114531,0.26520954,656.62,655.94,2.103]
[1751301114734,0.26520954,656.62,655.95,1.06089306]
[1751301114935,0.26520954,656.62,655.94,2.103]
[1751301115131,0.26520954,656.62,655.95,1.06089306]
[1751301115335,0.26520954,656.62,655.94,2.103]
[1751301115531,0.26520954,656.62,655.95,1.06082026]
[1751301115731,0.26520954,656.62,655.94,2.103]
[1751301115931,0.26520954,656.62,655.95,1.06082026]
[1751301116133,0.26520954,656.62,655.94,2.103]
[1751301116336,0.26520954,656.62,655.95,1.060777]
[1751301116532,0.26520954,656.62,655.94,2.103]
[1751301116736,0.26520954,656.62,655.95,1.06075796]
[1751301116933,0.26520954,656.62,655.94,2.103]
[1751301117133,0.26520954,656.62,655.95,1.06076033]
[1751301117335,0.26520954,656.62,655.94,2.103]
[1751301117535,0.26520954,656.62,655.95,1.06074185]
[1751301117739,0.26520954,656.62,655.94,2.103]
[1751301127845,0.26520954,656.62,655.95,1.0610845]
[1751301128040,0.26520954,656.62,655.94,2.103]
[1751301128241,0.26520954,656.62,655.95,1.06110265]
[1751301128541,0.26520954,656.62,655.94,2.103]